bitfinex/quotes_ETHUSD_20250329
["timestamp","ask_amount","ask_price","bid_price","bid_amount"]
[1743289767858,10.87022549,1824.2,1823.8,10.96571]
[1743289768259,10.87022549,1824.2,1823.8,12.062281]
[1743289768568,2.38821549,1824.2,1823.9,0.86142406]
[1743289768764,3.0,1824.3,1824.0,5.48235]
[1743289769766,8.48157,1824.3,1824.0,5.48235]
[1743289772873,3.0,1824.3,1824.0,5.48235]
[1743289774575,2.24741549,1824.2,1823.9,6.28931]
[1743289774743,7.72931549,1824.2,1823.9,9.1015001]
[1743289774944,7.72931549,1824.2,1823.9,6.28931]
[1743289776083,7.72931549,1824.2,1823.9,5.48271]
[1743289776387,7.72999549,1824.0,1823.8,10.13]
[1743289776781,5.60819666,1823.9,1823.8,10.13]
[1743289777086,5.60819666,1823.9,1823.5,5.48378]
[1743289777286,5.60819666,1823.9,1823.5,13.667932]
[1743289777957,2.24741549,1823.8,1823.5,13.667932]
[1743289778552,0.12544666,1823.7,1823.5,13.667932]
[1743289778757,0.12544666,1823.7,1823.5,8.184152]
[1743289779196,0.12544666,1823.7,1823.5,2.700392]
[1743289779352,5.60879666,1823.7,1823.4,0.7829]
[1743289780668,2.24741549,1823.6,1823.4,0.7829]
[1743289780890,0.12312173,1823.5,1823.4,0.7829]
[1743289781997,0.12312173,1823.5,1823.3,15.61432]
[1743289783768,0.12312173,1823.5,1823.3,5.48432]
[1743289784169,0.12312173,1823.5,1823.2,21.52073]
[1743289784473,0.12312173,1823.5,1823.2,27.00556]
[1743289784678,0.12312173,1823.5,1823.2,19.16622009]
[1743289786804,5.60708173,1823.5,1823.2,6.26773]
[1743289787017,5.48456,1823.3,1823.0,10.13]
[1743289787304,5.48456,1823.3,1822.8,6.26876]
[1743289787305,7.8511387,1823.2,1822.8,6.26876]
[1743289787970,13.3362087,1823.2,1822.8,6.26876]
[1743289788175,13.4770087,1823.2,1822.8,7.444271]
[1743289788789,7.9919387,1823.2,1822.8,7.444271]
[1743289789423,7.9919387,1823.2,1822.8,12.930141]
[1743289789822,2.5069687,1823.2,1822.9,5.48565]
[1743289789996,2.5069687,1823.2,1823.0,5.48541]
[1743289790522,2.5069687,1823.2,1822.9,5.48568]
[1743289791298,7.9919887,1823.2,1822.8,6.26893]
[1743289791694,7.9919887,1823.2,1822.8,13.442747]
[1743289791891,13.4770687,1823.2,1822.8,7.956717]
[1743289792094,13.4770687,1823.2,1822.8,7.173817]
[1743289792335,7.9919887,1823.2,1822.8,7.173817]
[1743289795526,13.4770787,1823.2,1822.8,7.173817]
[1743289796406,7.9919387,1823.2,1822.8,7.173817]
[1743289797233,13.4770387,1823.2,1822.8,7.173817]
[1743289797420,13.4770287,1823.2,1822.8,7.173817]
[1743289797921,7.9919387,1823.2,1822.8,7.173817]
[1743289798539,7.9919387,1823.2,1822.8,12.659677]
[1743289798842,7.9919387,1823.2,1822.8,12.659727]
[1743289799041,7.9919387,1823.2,1822.8,7.173787]
[1743289800138,7.9919387,1823.2,1822.8,12.659667]
[1743289800646,7.9919387,1823.2,1822.8,7.173787]
[1743289801053,2.5069687,1823.2,1822.9,5.48564]
[1743289801414,0.11875321,1823.2,1822.9,2.0370427]
[1743289801711,7.73155549,1823.5,1823.1,6.25626]
[1743289801924,0.11311388,1823.4,1823.2,5.48483]
[1743289802740,0.11311388,1823.4,1823.3,5.48456]
[1743289802942,0.11311388,1823.4,1823.2,5.48483]
[1743289803142,0.11311388,1823.4,1823.1,6.31098385]
[1743289803343,0.11311388,1823.4,1823.1,11.79603385]
[1743289803524,0.11311388,1823.4,1823.1,6.25614]
[1743289803725,0.11311388,1823.4,1823.1,12.366794]
[1743289805017,0.11311388,1823.4,1823.2,5.48475]
[1743289807245,0.11311388,1823.4,1823.1,0.625614]
[1743289807438,5.73835388,1823.4,1823.0,21.10075]
[1743289810269,2.24741549,1823.2,1822.8,10.13]
[1743289810433,5.48527,1823.1,1822.8,15.61603]
[1743289810635,2.38821549,1823.2,1823.0,5.48527]
[1743289810832,2.38821549,1823.2,1822.9,0.05485266]
[1743289811032,7.73107549,1823.6,1823.2,5.48467]
[1743289811268,7.87187549,1823.6,1823.2,5.48467]
[1743289812123,5.125,1823.8,1823.4,5.48412]
[1743289812124,2.38821549,1823.8,1823.4,5.48412]
[1743289812327,2.38821549,1823.8,1823.4,5.48426]
[1743289812527,7.87128549,1823.8,1823.4,5.48426]
[1743289813142,2.38821549,1823.8,1823.5,0.0548343]
[1743289813373,2.38821549,1823.8,1823.5,5.48368]
[1743289813678,2.38821549,1823.8,1823.5,5.53851346]
[1743289813856,2.38821549,1823.8,1823.5,11.02227346]
[1743289814185,2.38821549,1823.8,1823.5,10.96744]
[1743289814770,2.38821549,1823.8,1823.6,5.4836]
[1743289814952,2.38821549,1823.8,1823.5,5.48368]
[1743289815553,2.24741549,1823.8,1823.5,5.48368]
[1743289815748,3.0,1823.9,1823.6,5.48355]
[1743289815955,2.38821549,1824.1,1823.8,5.48293]
[1743289816159,2.24741549,1824.1,1823.8,6.31295]
[1743289816358,6.02034504,1824.1,1823.8,6.31295]
[1743289816792,11.50251504,1824.1,1823.8,6.31295]
[1743289818210,3.02034504,1824.1,1823.8,6.3128]
[1743289818679,2.24741549,1824.1,1823.8,6.3128]
[1743289819399,2.24741549,1824.1,1823.9,5.48257]
[1743289819597,10.86977549,1824.3,1823.9,5.48257]
[1743289820299,16.35155549,1824.3,1823.9,5.48257]
[1743289820704,5.48186,1824.2,1823.9,5.48257]
[1743289821006,5.48186,1824.2,1823.8,6.3128]
[1743289821211,5.48186,1824.2,1823.7,10.13]
[1743289821212,7.73030549,1823.9,1823.7,10.13]
[1743289821504,5.62385,1823.8,1823.7,10.13]
[1743289821693,5.74288434,1823.8,1823.7,10.13]
[1743289821894,5.74288434,1823.8,1823.4,16.38707]
[1743289822209,7.73089549,1823.7,1823.4,10.13]
[1743289822566,0.11776611,1823.6,1823.4,10.13]
[1743289822769,0.11776611,1823.6,1823.4,15.66908708]
[1743289822996,2.24741549,1823.7,1823.4,15.61412]
[1743289823272,2.24741549,1823.7,1823.5,5.48374]
[1743289823781,2.24741549,1823.8,1823.6,6.25665]
[1743289824169,2.24741549,1823.8,1823.5,6.25686]
[1743289826309,7.73050549,1823.8,1823.5,6.25686]
[1743289827307,2.24741549,1823.8,1823.5,6.25686]
[1743289828511,2.24741549,1823.8,1823.5,8.443959]
[1743289829411,2.24741549,1823.8,1823.6,5.48361]
[1743289829574,7.72989549,1824.0,1823.6,5.48361]
[1743289829770,2.24741549,1824.0,1823.5,2.960099]
[1743289829973,2.24741549,1824.1,1823.8,6.25602]
[1743289830208,14.10473,1824.2,1823.8,6.25602]
[1743289830389,2.24741549,1824.1,1823.8,6.25602]
[1743289831215,2.24741549,1824.1,1823.7,10.13]
[1743289831216,5.48255,1824.0,1823.7,10.903]
[1743289832124,7.72957549,1824.1,1823.7,16.38631]
[1743289832493,13.21194549,1824.1,1823.7,16.38631]
[1743289833626,3.0,1824.0,1823.7,16.38631]
[1743289833925,2.24741549,1824.1,1823.8,5.48286]
[1743289834298,3.1408,1824.2,1823.9,5.48255]
[1743289834622,3.0,1824.2,1823.9,5.48255]
[1743289836134,7.72899549,1824.3,1823.9,5.48255]
[1743289836313,7.72899549,1824.3,1823.9,6.579109]
[1743289836829,0.12312189,1824.2,1823.9,6.63393074]
[1743289837995,0.12312189,1824.2,1823.9,6.579109]
[1743289840134,0.12312189,1824.2,1823.9,7.405609]
[1743289840434,0.12312189,1824.2,1823.9,12.94297022]
[1743289840634,0.12312189,1824.2,1824.0,6.77673702]
[1743289841136,0.12312189,1824.2,1824.0,1.29429702]
[1743289841335,0.12312189,1824.2,1823.9,6.30904]
[1743289843533,0.12312189,1824.2,1823.9,11.84644975]
[1743289843740,0.12312189,1824.2,1823.9,11.79163]
[1743289844221,0.12312189,1824.2,1823.9,6.30904]
[1743289844838,0.12312189,1824.2,1823.9,11.79161]
[1743289845034,0.12312189,1824.2,1824.0,1.179161]
[1743289848458,5.60508189,1824.2,1824.0,1.179161]
[1743289848615,5.60508189,1824.2,1823.9,0.8265]
[1743289849133,2.24741549,1824.1,1823.9,0.8265]
[1743289849334,0.12544666,1824.0,1823.8,15.61289]
[1743289850432,2.24741549,1823.9,1823.8,10.13]
[1743289850610,10.87096549,1823.9,1823.5,6.29095]
[1743289850807,2.24741549,1823.7,1823.5,7.468467]
[1743289851013,2.24741549,1823.7,1823.5,17.598467]
[1743289851437,0.12481267,1823.6,1823.5,17.598467]
[1743289851954,2.24741549,1823.7,1823.5,17.598467]
[1743289852157,0.12481267,1823.6,1823.5,17.598467]
[1743289852354,2.24741549,1823.7,1823.5,17.598467]
[1743289852554,0.12481267,1823.6,1823.5,23.082217]
[1743289852753,2.24741549,1823.7,1823.5,23.082217]
[1743289852913,0.12481267,1823.6,1823.5,23.082217]
[1743289853348,2.24741549,1823.7,1823.5,23.082217]
[1743289853550,0.12481267,1823.6,1823.5,23.082217]
[1743289853844,2.24741549,1823.7,1823.5,23.082217]
[1743289854042,0.12481267,1823.6,1823.5,23.082217]
[1743289854241,0.12481267,1823.6,1823.5,12.952217]
[1743289854438,2.24741549,1823.7,1823.5,12.952217]
[1743289854809,0.12481267,1823.6,1823.5,12.952217]
[1743289855013,2.24741549,1823.7,1823.5,12.952217]
[1743289855213,0.12481267,1823.6,1823.5,7.468367]
[1743289855442,2.24741549,1823.8,1823.5,7.468367]
[1743289855641,0.12481267,1823.6,1823.5,7.468367]
[1743289855861,2.24741549,1823.8,1823.5,7.468367]
[1743289856037,0.12481267,1823.6,1823.5,7.468367]
[1743289856243,2.24741549,1823.8,1823.5,7.468367]
[1743289856419,0.12481267,1823.6,1823.5,7.468367]
[1743289856611,2.24741549,1823.8,1823.5,7.468367]
[1743289856814,0.12481267,1823.7,1823.5,7.468367]
[1743289859855,0.12481267,1823.7,1823.5,12.952157]
[1743289860059,0.12481267,1823.7,1823.5,23.082157]
[1743289861153,0.12481267,1823.7,1823.5,17.598367]
[1743289862858,1.47384171,1823.7,1823.5,17.598367]
[1743289863557,1.34902904,1823.6,1823.5,17.598367]
[1743289863858,0.1221355,1823.6,1823.5,16.42085]
[1743289864228,1.34902904,1823.7,1823.5,16.42085]
[1743289864429,0.1221355,1823.6,1823.5,16.42085]
[1743289864758,1.34902904,1823.7,1823.5,16.42085]
[1743289865159,0.1221355,1823.6,1823.5,16.42085]
[1743289865453,1.34902904,1823.7,1823.5,18.61136]
[1743289865654,0.1221355,1823.6,1823.5,24.09515]
[1743289866037,1.34902904,1823.7,1823.6,5.48365]
[1743289866963,1.34902904,1824.0,1823.9,5.48271]
[1743289867328,8.62248,1824.3,1823.9,5.48271]
[1743289867329,1.34902904,1824.1,1823.9,10.96542]
[1743289867524,1.34902904,1824.1,1824.0,5.48245]
[1743289868981,2.38805422,1824.3,1824.0,5.48245]
[1743289869460,7.86968422,1824.3,1823.9,6.28104]
[1743289869667,7.86968422,1824.3,1823.9,6.33586014]
[1743289870257,2.38805422,1824.3,1824.0,5.48244]
[1743289870872,2.38805422,1824.3,1824.0,5.48225]
[1743289871060,2.24725422,1824.3,1824.1,5.48203]
[1743289871465,2.24725422,1824.3,1824.0,5.48239]
[1743289871851,2.24725422,1824.3,1824.1,5.48212]
[1743289872279,2.24725422,1824.3,1824.0,5.48239]
[1743289872580,2.38805422,1824.5,1824.3,5.48149]
[1743289872782,2.38805422,1824.5,1824.4,5.48125]
[1743289872969,2.38805422,1824.5,1824.3,5.48149]
[1743289873278,2.38805422,1824.5,1824.2,6.28017]
[1743289874680,2.38805422,1824.5,1824.2,6.28008]
[1743289875181,2.38805422,1824.5,1824.2,11.76177]
[1743289875358,2.38805422,1824.5,1824.2,12.937947]
[1743289876389,2.38805422,1824.5,1824.2,7.456257]
[1743289876555,2.38805422,1824.5,1824.2,12.937947]
[1743289876755,2.38805422,1824.8,1824.2,1.974577]
[1743289876971,2.38805422,1824.8,1824.5,5.48074]
[1743289877965,0.1408,1824.8,1824.5,5.48074]
[1743289878575,2.38805422,1824.8,1824.5,6.028814]
[1743289879159,2.24725422,1824.8,1824.6,5.4805]
[1743289879666,5.24725422,1824.9,1824.6,5.4805]
[1743289881692,0.12805238,1824.8,1824.6,5.4805]
[1743289882061,10.72701422,1824.9,1824.5,16.158904]
[1743289882264,10.72701422,1824.9,1824.6,6.05771732]
[1743289882565,7.86842422,1824.7,1824.5,10.13]
[1743289882989,0.1328406,1824.6,1824.5,10.13]
[1743289883282,2.38805422,1824.7,1824.5,10.13]
[1743289883485,0.1328406,1824.6,1824.5,10.13]
[1743289883666,0.1328406,1824.6,1824.4,5.48106]
[1743289883861,2.38805422,1824.7,1824.4,7.59032]
[1743289884068,0.1328406,1824.5,1824.4,7.6451264]
[1743289884280,2.38805422,1824.7,1824.4,7.6451264]
[1743289884468,0.1328406,1824.5,1824.4,7.6451264]
[1743289884661,2.38805422,1824.7,1824.4,7.6451264]
[1743289884876,0.1328406,1824.5,1824.4,7.6451264]
[1743289885077,0.1328406,1824.5,1824.4,7.59032]
[1743289885680,0.1328406,1824.5,1824.4,8.36912]
[1743289885881,2.24725422,1824.8,1824.5,5.4808]
[1743289886083,2.24725422,1824.8,1824.5,6.865792]
[1743289886588,5.48048,1824.7,1824.4,2.10926]
[1743289886785,5.62128,1824.7,1824.3,15.61152]
[1743289886963,2.24725422,1824.8,1824.5,5.48083]
[1743289887361,2.24725422,1824.8,1824.6,5.48063]
[1743289887966,2.24725422,1824.8,1824.6,5.48064]
[1743289888173,2.24725422,1824.8,1824.5,5.48095]
[1743289888476,2.24725422,1824.8,1824.5,6.655048]
[1743289889462,2.24725422,1824.8,1824.5,16.785048]
[1743289890384,2.24725422,1824.8,1824.6,5.48051]
[1743289896798,0.13262941,1824.7,1824.6,5.48051]
[1743289897396,0.13262941,1824.7,1824.6,17.02710976]
[1743289897700,2.24725422,1825.3,1825.0,5.4793]
[1743289898001,0.13277025,1825.2,1825.0,5.4793]
[1743289898701,0.13277025,1825.2,1824.9,21.90105]
[1743289899203,0.13277025,1825.2,1824.9,16.42137]
[1743289899598,0.13277025,1825.2,1824.9,21.90091]
[1743289900105,0.13277025,1825.2,1825.0,5.47942]
[1743289900601,0.13277025,1825.2,1824.9,16.42134]
[1743289900801,0.13277025,1825.2,1824.9,18.611478]
[1743289901424,0.1408,1825.0,1824.5,10.9418]
[1743289901699,2.24725422,1824.6,1824.3,6.29312]
[1743289901874,2.24725422,1824.6,1824.4,15.61112]
[1743289902075,0.13389647,1824.5,1824.4,15.61112]
[1743289902502,0.1408,1824.7,1824.4,15.61112]
[1743289902691,0.1408,1824.7,1824.5,1.561112]
[1743289904806,2.24725422,1824.6,1824.5,1.561112]
[1743289906211,2.24725422,1824.6,1824.4,10.13]
[1743289906977,2.24725422,1824.6,1824.3,21.90457]
[1743289907299,2.24725422,1824.6,1824.3,16.42313]
[1743289907603,2.24725422,1824.6,1824.3,15.61133]
[1743289908279,2.24725422,1824.6,1824.3,21.09268]
[1743289908479,2.24725422,1824.6,1824.3,23.201948]
[1743289908978,2.24725422,1824.6,1824.4,5.48119]
[1743289909908,2.24725422,1824.6,1824.3,24.013738]
[1743289910500,2.24725422,1824.6,1824.4,5.48123]
[1743289911407,2.24725422,1824.6,1824.3,18.532398]
[1743289911707,0.13368522,1824.5,1824.3,18.532398]
[1743289913511,0.13368522,1824.5,1824.3,24.013788]
[1743289913811,0.13368522,1824.5,1824.4,5.48125]
[1743289914207,0.13368522,1824.5,1824.3,18.532398]
[1743289915393,0.13368522,1824.5,1824.4,5.48125]
[1743289915590,0.13368522,1824.5,1824.4,7.8826148]
[1743289916202,2.24725422,1824.8,1824.5,6.26121]
[1743289916394,0.13136219,1824.7,1824.5,6.26121]
[1743289921112,2.24725422,1824.6,1824.4,15.61123]
[1743289921514,2.24725422,1824.6,1824.4,10.13]
[1743289921730,0.13199577,1824.5,1824.4,10.13]
[1743289923391,0.13199577,1824.5,1824.4,15.61125]
[1743289924626,0.13199577,1824.5,1824.4,5.48125]
[1743289925209,0.13199577,1824.5,1824.4,7.59051]
[1743289928322,0.13199577,1824.5,1824.4,5.48125]
[1743289928524,5.75397577,1824.5,1824.2,10.13]
[1743289928737,2.24725422,1824.4,1824.2,10.13]
[1743289929021,0.13227739,1824.3,1824.2,10.13]
[1743289929225,2.24725422,1824.4,1824.3,5.48155]
[1743289929422,2.37953161,1824.4,1824.3,5.48155]
[1743289930627,0.13227739,1824.4,1824.3,5.48155]
[1743289930930,2.24725422,1824.6,1824.3,5.48155]
[1743289931124,2.37953161,1824.4,1824.2,15.61156]
[1743289931328,2.24725422,1824.4,1824.2,15.61156]
[1743289931526,0.13227739,1824.3,1824.2,10.13]
[1743289931828,7.72862422,1824.4,1824.0,21.9035]
[1743289931996,2.24725422,1824.2,1824.0,21.9035]
[1743289932198,2.24725422,1824.2,1824.0,15.61221]
[1743289932396,0.13227739,1824.1,1824.0,15.61221]
[1743289932597,2.24725422,1824.2,1824.0,15.61221]
[1743289932845,0.13227739,1824.1,1824.0,10.13]
[1743289933127,2.38805422,1824.2,1824.0,10.13]
[1743289933313,0.12847522,1824.1,1824.0,15.6124]
[1743289933708,2.38805422,1824.2,1824.0,15.6124]
[1743289933907,0.12847522,1824.1,1824.0,15.6124]
[1743289934310,2.38805422,1824.2,1824.0,15.6124]
[1743289934509,0.12847522,1824.1,1824.0,15.6124]
[1743289934929,2.24725422,1824.2,1824.0,15.6124]
[1743289935225,0.12847522,1824.1,1824.0,15.6124]
[1743289935428,2.24725422,1824.2,1824.0,15.6124]
[1743289935625,0.12847522,1824.1,1824.0,15.6124]
[1743289935929,2.24725422,1824.2,1824.0,15.6124]
[1743289936127,0.12847522,1824.1,1824.0,15.6124]
[1743289936328,0.12847522,1824.1,1824.0,5.4824]
[1743289936531,2.24725422,1824.2,1824.0,5.4824]
[1743289936700,0.12847522,1824.1,1824.0,5.4824]
[1743289936900,2.24725422,1824.2,1824.0,5.4824]
[1743289937128,0.12847522,1824.1,1824.0,5.4824]
[1743289937820,2.24725422,1824.2,1824.0,5.4824]
[1743289938019,0.12847522,1824.1,1824.0,5.4824]
[1743289938221,2.24725422,1824.2,1824.0,5.4824]
[1743289938401,0.12847522,1824.1,1824.0,5.4824]
[1743289938603,2.24725422,1824.2,1824.0,5.4824]
[1743289938802,0.12847522,1824.1,1824.0,5.4824]
[1743289939021,2.24725422,1824.2,1824.0,5.4824]
[1743289939223,0.12847522,1824.1,1824.0,5.4824]
[1743289939427,2.24725422,1824.2,1824.0,5.4824]
[1743289939626,0.12847522,1824.1,1824.0,5.4824]
[1743289939799,2.24725422,1824.2,1824.0,5.4824]
[1743289940002,0.12847522,1824.1,1824.0,5.4824]
[1743289940231,2.24725422,1824.2,1824.0,5.4824]
[1743289940420,0.12847522,1824.1,1824.0,5.4824]
[1743289940621,2.24725422,1824.2,1824.0,5.4824]
[1743289940821,0.12847522,1824.1,1824.0,5.4824]
[1743289941037,2.24725422,1824.2,1824.0,5.4824]
[1743289941234,0.12847522,1824.1,1824.0,5.4824]
[1743289941433,2.24725422,1824.2,1824.0,5.4824]
[1743289941647,0.12847522,1824.1,1824.0,5.4824]
[1743289941850,2.24725422,1824.2,1824.0,5.4824]
[1743289942029,0.12847522,1824.1,1824.0,5.4824]
[1743289942334,2.24725422,1824.2,1824.0,5.4824]
[1743289942633,0.12847522,1824.1,1824.0,5.4824]
[1743289942835,2.24725422,1824.2,1824.0,5.4824]
[1743289943036,0.12847522,1824.1,1824.0,5.4824]
[1743289943237,2.24725422,1824.2,1824.0,5.4824]
[1743289943637,0.12777097,1824.1,1824.0,5.4824]
[1743289943812,2.24725422,1824.2,1824.0,7.591894]
[1743289944130,0.12777097,1824.1,1824.0,7.591894]
[1743289944537,2.24725422,1824.2,1824.0,7.591894]
[1743289944711,0.12777097,1824.1,1824.0,7.591894]
[1743289944912,2.24725422,1824.2,1824.0,7.591894]
[1743289945130,0.12777097,1824.1,1824.0,7.591894]
[1743289945528,2.24725422,1824.2,1824.1,5.48215]
[1743289945737,2.24725422,1824.4,1824.2,5.48185]
[1743289946143,2.24725422,1824.4,1824.2,10.96357]
[1743289947644,2.24725422,1824.6,1824.4,5.48104]
[1743289948919,2.24725422,1824.6,1824.4,10.96212]
[1743289949128,2.24725422,1824.6,1824.4,5.48104]
[1743289950862,2.24725422,1824.6,1824.4,10.96214]
[1743289951017,2.24725422,1824.6,1824.4,5.48104]
[1743289951548,2.24725422,1824.6,1824.5,5.48095]
[1743289951854,2.24725422,1824.6,1824.4,5.48104]
[1743289952347,2.24725422,1824.6,1824.4,7.590297]
[1743289952845,2.24725422,1824.6,1824.4,13.071367]
[1743289956238,2.24725422,1824.6,1824.4,13.071357]
[1743289956754,0.12896804,1824.5,1824.4,13.071357]
[1743289957555,0.12896804,1824.5,1824.4,7.590297]
[1743289958834,1.47682937,1824.5,1824.4,7.590297]
[1743289964147,7.09867937,1824.5,1824.3,10.13]
[1743289964354,1.34786133,1824.4,1824.3,10.13]
[1743289964732,6.96082552,1824.4,1824.3,10.13]
[1743289964933,7.10162552,1824.4,1824.3,10.13]
[1743289966327,1.62037552,1824.4,1824.3,10.13]
[1743289966839,2.51972534,1824.4,1824.3,10.13]
[1743289968325,8.00097534,1824.4,1824.3,10.13]
[1743289968520,2.51972534,1824.4,1824.3,10.13]
[1743289968727,2.51972534,1824.4,1824.1,5.48193]
[1743289973337,2.37892534,1824.4,1824.3,5.48155]
[1743289974657,2.37892534,1824.4,1824.2,15.61173]
[1743289975066,2.37892534,1824.4,1824.2,21.09342]
[1743289976364,2.37892534,1824.4,1824.2,15.61169]
[1743289978271,2.37892534,1824.4,1824.2,10.13]
[1743289980359,2.37892534,1824.4,1824.1,5.48196]
[1743289983266,2.51972534,1824.4,1824.1,5.48196]
[1743289983867,2.51972534,1824.4,1824.2,5.48181]
[1743289984174,2.51972534,1824.4,1824.2,5.48174]
[1743289985376,2.51972534,1824.4,1824.2,5.48169]
[1743289985547,2.37892534,1824.4,1824.3,5.48155]
[1743289985749,2.37892534,1824.4,1824.3,6.10238441]
[1743289986576,0.13171419,1824.4,1824.3,6.10238441]
[1743289986951,1.34786858,1824.4,1824.3,6.10238441]
[1743289987150,1.47606212,1824.4,1824.3,6.10238441]
[1743289989079,1.47606212,1824.4,1824.3,0.62083441]
[1743289989259,1.47606212,1824.4,1824.1,10.13]
[1743289989451,1.34786858,1824.2,1824.1,15.61204]
[1743289989780,1.47796328,1824.2,1824.1,5.48204]
[1743289990294,1.47796328,1824.2,1824.1,5.5368571]
[1743289990451,1.47796328,1824.2,1824.1,6.72129381]
[1743289990650,1.34786858,1824.2,1824.1,6.72129381]
[1743289990848,2.24692619,1824.3,1824.2,5.48162]
[1743289995683,2.24692619,1824.3,1824.1,6.66647671]
[1743289996180,2.38772619,1824.3,1824.1,5.48204]
[1743289996387,7.86929619,1824.3,1824.0,5.48244]
[1743289996561,2.24692619,1824.1,1823.9,10.96533]
[1743289997090,2.24692619,1824.1,1824.0,5.48245]
[1743290001689,2.37568309,1824.1,1824.0,5.48245]
[1743290002185,2.37568309,1824.1,1824.0,7.591956]
[1743290003557,2.37568309,1824.1,1824.0,5.48245]
[1743290004289,2.37568309,1824.1,1823.9,21.0952]
[1743290004586,2.37568309,1824.1,1824.0,5.48245]
[1743290006406,2.37568309,1824.1,1823.9,15.61268]
[1743290006910,2.37568309,1824.1,1824.0,5.48245]
[1743290007889,2.37568309,1824.1,1823.9,5.48261]
[1743290008093,2.37568309,1824.1,1823.9,7.674705]
[1743290009394,2.37568309,1824.1,1823.9,13.157285]
[1743290010113,2.37568309,1824.1,1824.0,5.48245]
[1743290010990,1.47717065,1824.1,1824.0,6.24035]
[1743290011164,1.47717065,1824.1,1824.0,6.29516891]
[1743290011370,1.47717065,1824.1,1824.0,7.63733439]
[1743290012697,1.47717065,1824.1,1824.0,17.76733439]
[1743290016666,0.1287569,1824.1,1824.0,17.76733439]
[1743290016870,1.34841375,1824.3,1824.2,5.48185]
[1743290017070,1.47632555,1824.3,1824.2,6.28405]
[1743290017283,1.47632555,1824.3,1824.2,7.460658]
[1743290018601,1.47632555,1824.3,1824.2,17.590658]
[1743290019982,0.1279118,1824.3,1824.2,7.460658]
[1743290020203,1.34841375,1824.4,1824.3,5.48155]
[1743290021008,1.34841375,1824.4,1824.3,5.53635934]
[1743290021208,1.34841375,1824.4,1824.3,6.78125173]
[1743290021510,1.34841375,1824.4,1824.3,6.83606125]
[1743290021979,1.34841375,1824.4,1824.3,6.78125173]
[1743290023534,3.1408,1824.9,1824.4,0.8022]
[1743290023714,3.1408,1824.9,1824.6,5.48054]
[1743290024408,0.1408,1824.9,1824.6,5.48054]
[1743290024781,1.34841375,1824.7,1824.6,5.48054]
[1743290030400,1.34841375,1824.7,1824.5,5.48087]
[1743290030600,1.34841375,1824.6,1824.5,5.48087]
[1743290031828,1.48139508,1824.6,1824.5,5.48087]
[1743290037844,0.13298133,1824.6,1824.5,5.48087]
[1743290038049,1.48139508,1824.6,1824.5,5.48087]
[1743290038356,1.48139517,1824.6,1824.5,5.48087]
[1743290044151,1.62219517,1824.6,1824.4,15.6111]
[1743290044448,1.34841375,1824.5,1824.4,10.13]
[1743290044747,1.48167675,1824.5,1824.3,15.61134]
[1743290044947,1.34841375,1824.4,1824.3,17.2901348]
[1743290045337,1.48167675,1824.4,1824.3,17.2901348]
[1743290050173,1.48167675,1824.4,1824.3,18.1066348]
[1743290055561,0.133263,1824.4,1824.3,18.1066348]
[1743290057365,1.34841375,1824.6,1824.5,5.48095]
[1743290057670,1.48026874,1824.6,1824.5,5.48095]
[1743290059873,1.62106874,1824.6,1824.4,5.48114]
[1743290060075,1.34841375,1824.5,1824.4,10.96225]
[1743290060572,1.48153598,1824.5,1824.4,5.48111]
[1743290062373,1.48153598,1824.5,1824.3,17.2903248]
[1743290062540,1.48153598,1824.5,1824.3,10.13]
[1743290062541,1.48921375,1824.4,1824.3,10.13]
[1743290062746,0.1408,1824.3,1823.8,5.48293]
[1743290062970,0.13192538,1824.2,1823.9,5.48272]
[1743290063855,0.13192538,1824.2,1824.0,5.48245]
[1743290064255,1.34841375,1824.1,1824.0,5.48245]
[1743290064773,1.48033913,1824.1,1824.0,5.48245]
[1743290065960,1.48033913,1824.1,1823.9,5.48272]
[1743290066169,1.34841375,1824.0,1823.9,10.96534]
[1743290066666,1.48033913,1824.0,1823.9,10.96534]
[1743290066868,1.48033913,1824.0,1823.9,5.48262]
[1743290068881,1.48033913,1824.0,1823.8,10.13]
[1743290069081,6.97207375,1823.9,1823.4,5.48398]
[1743290069259,0.1408,1823.9,1823.5,5.48373]
[1743290069452,1.34841375,1823.6,1823.5,5.48373]
[1743290074158,1.47759255,1823.6,1823.5,5.48373]
[1743290086495,1.47759255,1823.6,1823.4,16.244508]
[1743290086695,1.34841375,1823.5,1823.4,16.244508]
[1743290087294,1.47188788,1823.5,1823.4,16.244508]
[1743290088296,0.12347413,1823.5,1823.4,16.244508]
[1743290089393,0.12347413,1823.5,1823.4,17.558308]
[1743290089595,1.34841375,1823.8,1823.4,17.558308]
[1743290089896,1.34841375,1823.9,1823.8,5.48304]
[1743290091895,1.46991525,1823.9,1823.8,5.48304]
[1743290100273,0.1408,1823.8,1823.7,10.13]
[1743290100506,1.6123357,1823.8,1823.7,10.13]
[1743290100809,1.6123357,1823.8,1823.7,5.48335]
[1743290101416,1.4715357,1823.8,1823.7,5.48335]
[1743290101579,1.4715357,1823.8,1823.7,6.58003]
[1743290102287,1.4715357,1823.8,1823.7,5.48335]
[1743290105411,0.12312195,1823.8,1823.7,5.53817898]
[1743290105611,0.40222509,1824.4,1824.0,5.48245]
[1743290105612,1.34841375,1824.1,1824.0,5.48245]
[1743290105810,1.47118343,1824.1,1824.0,5.48245]
[1743290107417,0.12276968,1824.1,1824.0,6.29475]
[1743290107718,8.48066,1824.6,1824.2,5.48162]
[1743290107888,1.34841375,1824.3,1824.2,5.48162]
[1743290113323,1.34841375,1824.3,1824.2,5.48162]
[1743290118135,1.34841375,1824.3,1824.2,15.66643322]
[1743290118303,1.34841375,1824.3,1824.2,15.61162]
[1743290119840,8.48037,1824.7,1824.3,5.48132]
[1743290120128,0.1408,1824.6,1824.3,5.48132]
[1743290120426,1.34841375,1824.4,1824.3,5.48132]
[1743290121629,1.47702981,1824.4,1824.3,5.48132]
[1743290122227,0.12861606,1824.4,1824.3,5.48132]
[1743290122397,1.34841375,1824.6,1824.5,5.48095]
[1743290122739,0.1408,1824.8,1824.6,5.48049]
[1743290123027,3.1408,1824.9,1824.6,10.96096]
[1743290123228,0.1408,1824.9,1824.5,10.13]
[1743290123395,0.1408,1825.1,1824.8,5.47994]
[1743290123596,3.1408,1825.1,1824.8,5.47994]